bitfinex/quotes_ETHUSD_20250123
["timestamp","ask_amount","ask_price","bid_price","bid_amount"]
[1737674278805,6.01005,3327.8,3327.4,0.7634]
[1737674279050,3.00501,3327.8,3327.4,0.7634]
[1737674279791,3.00501,3327.8,3327.4,1.440285]
[1737674280659,3.00481,3328.0,3327.5,3.0]
[1737674281061,0.5468,3328.3,3327.4,1.440285]
[1737674281262,3.00487,3328.0,3327.5,3.0]
[1737674282606,3.00487,3328.0,3327.4,4.445615]
[1737674282607,3.00443,3328.5,3327.9,3.76051]
[1737674282806,3.00443,3328.5,3328.0,3.676051]
[1737674283113,3.00452,3328.4,3328.0,0.676051]
[1737674283273,0.1676187,3328.7,3328.0,3.680851]
[1737674283478,3.00435,3328.5,3328.0,0.676051]
[1737674284209,6.00898,3328.4,3327.6,3.83004]
[1737674284405,3.00428,3328.6,3328.0,0.7805]
[1737674284696,0.1676187,3328.7,3328.0,3.7805]
[1737674284897,0.1676187,3328.7,3328.3,3.0]
[1737674285504,0.1676187,3328.7,3328.6,6.00426]
[1737674285663,0.1676187,3328.7,3328.6,7.38865554]
[1737674285998,0.1676187,3328.7,3328.6,39.41837632]
[1737674286205,0.1676187,3328.7,3328.6,38.63787632]
[1737674286590,0.1676187,3328.7,3328.6,3.63787632]
[1737674287590,3.1717887,3328.7,3328.6,3.63787632]
[1737674287891,3.1717887,3328.7,3328.6,3.03398078]
[1737674288292,0.00668319,3329.1,3328.7,0.7702]
[1737674288491,0.00668319,3329.1,3329.0,6.0039]
[1737674288678,0.00668319,3329.1,3329.0,41.80787712]
[1737674289011,0.00668319,3329.1,3329.0,44.90990274]
[1737674290217,3.19e-06,3329.1,3329.0,44.90990274]
[1737674290421,3.00236,3330.8,3329.5,6.80765]
[1737674290717,0.5468,3331.0,3329.5,6.80765]
[1737674290937,0.5468,3330.3,3329.5,3.83655808]
[1737674291089,3.00308,3330.0,3329.5,3.83655808]
[1737674291287,3.00172,3331.5,3330.7,3.00234]
[1737674291522,3.00165,3331.5,3330.8,0.33166999]
[1737674291838,3.00185,3331.3,3330.8,0.33166999]
[1737674292059,3.00196,3331.2,3330.8,0.03143599]
[1737674292194,3.00185,3331.3,3330.8,0.03143599]
[1737674292532,3.5484,3331.6,3330.3,3.78812]
[1737674292533,3.00195,3331.2,3330.9,0.03145743]
[1737674292744,3.0021,3331.0,3330.1,0.7854]
[1737674292901,0.5468,3331.1,3330.2,0.03235845]
[1737674293105,3.00246,3330.6,3330.2,0.03235845]
[1737674293493,3.00259,3330.5,3329.8,0.7616]
[1737674293744,3.00259,3330.5,3329.9,0.03257693]
[1737674293895,3.00232,3330.8,3329.9,0.03257693]
[1737674294092,0.300232,3330.7,3329.8,3.7616]
[1737674294301,3.00271,3330.4,3329.9,0.03269522]
[1737674294613,3.003,3330.0,3329.4,0.75]
[1737674295154,0.5468,3330.6,3328.7,37.163]
[1737674295155,3.00311,3329.9,3329.5,0.03347547]
[1737674295301,3.00322,3329.8,3329.5,0.03347547]
[1737674295499,0.5468,3330.6,3329.0,3.75388]
[1737674295500,3.00291,3330.1,3329.0,3.75388]
[1737674295731,3.303201,3330.1,3329.2,3.00371]
[1737674296047,3.54926,3330.6,3329.8,3.0]
[1737674296411,3.54926,3330.6,3329.9,0.03335584]
[1737674296807,3.00255,3330.5,3329.9,0.03335584]
[1737674297005,3.00255,3330.5,3330.1,3.0]
[1737674297405,3.00255,3330.5,3330.2,0.03248245]
[1737674297957,3.302672,3330.7,3330.3,3.03191467]
[1737674298534,3.0022,3330.9,3330.3,3.03191467]
[1737674298727,3.00233,3330.8,3330.3,3.03191467]
[1737674298950,3.00231,3330.8,3330.3,3.03191467]
[1737674299632,0.60264003,3331.1,3330.3,3.03191467]
[1737674299837,3.00257,3330.5,3330.3,3.03191467]
[1737674300386,3.00264,3330.4,3330.3,0.03191467]
[1737674300874,3.00298,3330.1,3329.5,3.0]
[1737674301074,3.00298,3330.1,3329.4,3.0]
[1737674301282,0.5468,3330.9,3329.7,0.7689]
[1737674301579,3.00256,3330.5,3329.8,38.03291391]
[1737674301981,3.00238,3330.7,3329.8,38.03291391]
[1737674302133,3.00248,3330.6,3329.8,38.03291391]
[1737674302335,3.00272,3330.4,3329.8,38.03291391]
[1737674302533,3.00273,3330.3,3329.8,38.03291391]
[1737674303181,0.5468,3331.8,3330.7,0.7689]
[1737674303483,3.00181,3331.4,3330.7,3.7689]
[1737674303646,0.5468,3331.8,3330.8,0.03208186]
[1737674303848,3.00171,3331.5,3330.9,3.0]
[1737674304237,3.00174,3331.4,3331.0,0.03181044]
[1737674304433,3.00183,3331.3,3331.0,0.03181044]
[1737674304754,3.00183,3331.3,3331.2,3.0]
[1737674304931,3.602181,3331.3,3331.2,3.0]
[1737674305137,3.602181,3331.3,3330.3,0.7689]
[1737674305138,3.00216,3331.0,3330.3,3.7689]
[1737674305437,3.00198,3331.2,3330.5,3.0]
[1737674305641,3.00211,3331.0,3330.5,3.0]
[1737674305951,3.00211,3331.0,3330.6,0.03224712]
[1737674306387,3.00211,3331.0,3330.7,35.0]
[1737674306689,3.00211,3331.0,3330.8,3.0]
[1737674307059,3.00211,3331.0,3330.9,0.03202872]
[1737674307879,3.00198,3331.2,3330.9,0.03202872]
[1737674308087,3.00209,3331.1,3330.9,0.03202872]
[1737674308243,3.0021,3331.0,3330.9,0.03202872]
[1737674311798,3.0021,3331.0,3330.9,0.0318603]
[1737674312300,0.59136491,3331.5,3330.6,3.0]
[1737674312445,3.0021,3331.0,3330.9,0.0318719]
[1737674312643,3.0027,3330.4,3329.7,0.7536]
[1737674312990,3.00265,3330.4,3329.8,35.03158305]
[1737674314190,3.00265,3330.4,3329.9,3.0]
[1737674314400,3.00265,3330.4,3330.1,3.0]
[1737674314401,3.00282,3330.2,3330.1,3.0]
[1737674314606,3.00265,3330.4,3330.1,3.0]
[1737674314888,3.00265,3330.4,3330.1,3.03166145]
[1737674315568,3.00261,3330.5,3330.1,3.03166145]
[1737674315769,3.00248,3330.6,3330.1,3.03166145]
[1737674315966,3.00248,3330.6,3330.2,0.61336871]
[1737674316491,3.00248,3330.6,3330.3,0.03151579]
[1737674316663,3.00256,3330.5,3330.3,0.03151579]
[1737674316862,3.00248,3330.6,3330.1,3.0]
[1737674317075,3.00248,3330.6,3330.4,0.03144297]
[1737674317302,3.00248,3330.6,3330.1,3.0]
[1737674317517,3.00248,3330.6,3330.2,0.61020256]
[1737674317703,3.00196,3331.2,3330.3,0.78631579]
[1737674317901,3.00196,3331.2,3330.3,3.78631579]
[1737674317902,3.00216,3331.0,3330.3,3.78631579]
[1737674318816,3.00219,3330.9,3330.3,3.78631579]
[1737674319019,3.00219,3330.9,3330.4,0.73992584]
[1737674319518,3.00219,3330.9,3330.5,0.03137015]
[1737674319816,3.00242,3330.7,3330.5,0.03137015]
[1737674320224,3.00246,3330.6,3330.5,0.03137015]
[1737674320373,3.00246,3330.6,3330.3,0.7548]
[1737674320575,3.00246,3330.6,3330.5,0.03137015]
[1737674320824,3.00246,3330.6,3330.4,0.03144297]
[1737674321036,3.00246,3330.6,3330.5,0.03137015]
[1737674321411,3.00246,3330.6,3330.3,1.19130026]
[1737674321606,3.00246,3330.6,3330.5,0.03137015]
[1737674321820,3.00246,3330.6,3330.4,0.03144297]
[1737674322016,3.00246,3330.6,3330.5,0.03137015]
[1737674322546,3.00264,3330.4,3330.2,0.61020256]
[1737674323142,3.00264,3330.4,3330.1,0.8117]
[1737674324350,3.00247,3330.6,3330.1,0.8117]
[1737674324700,3.00231,3330.8,3330.1,0.8117]
[1737674324901,3.00237,3330.7,3330.1,0.8117]
[1737674325116,3.00254,3330.6,3330.1,0.8117]
[1737674325318,3.00254,3330.6,3330.2,0.38117]
[1737674325653,3.00268,3330.4,3330.2,0.38117]
[1737674326040,0.60279268,3331.2,3330.2,0.38117]
[1737674326331,3.00245,3330.7,3330.2,0.38117]
[1737674326546,3.00229,3330.8,3330.3,3.0]
[1737674326740,3.0021,3331.0,3330.5,3.0]
[1737674327032,3.0021,3331.0,3330.6,0.7638]
[1737674327734,3.00225,3330.9,3330.7,3.0]
[1737674327945,3.0021,3331.0,3330.7,3.0]
[1737674328258,3.0021,3331.0,3330.6,0.7638]
[1737674328597,3.00234,3330.8,3330.6,1.2040191]
[1737674328797,3.00234,3330.8,3330.6,0.7638]
[1737674329612,3.54859,3331.4,3330.6,0.7638]
[1737674329811,3.00237,3330.8,3330.6,0.7638]
[1737674330536,3.00237,3330.8,3330.7,0.0313788]
[1737674331238,3.00191,3331.3,3330.7,3.0313788]
[1737674331443,3.00191,3331.3,3330.8,0.67975588]
[1737674331649,3.00194,3331.2,3330.8,0.67975588]
[1737674331848,3.00194,3331.2,3330.9,0.03160312]
[1737674332168,3.0021,3331.0,3330.9,0.03160312]
[1737674332648,3.00198,3331.2,3330.7,3.0]
[1737674332940,3.00219,3330.9,3330.8,0.70785572]
[1737674333145,3.00219,3330.9,3330.8,0.03123172]
[1737674333331,3.00219,3330.9,3330.6,0.7638]
[1737674333527,3.00213,3331.0,3330.7,0.03130451]
[1737674334337,3.00228,3330.8,3330.7,0.03130451]
[1737674336376,3.00213,3331.0,3330.7,0.03130451]
[1737674337043,3.00195,3331.2,3330.7,0.03130451]
[1737674337252,3.00204,3331.1,3330.8,0.37951045]
[1737674337556,3.00204,3331.1,3330.9,0.03110656]
[1737674337981,3.0019,3331.3,3330.9,0.03110656]
[1737674338282,3.00193,3331.2,3330.9,0.03110656]
[1737674338447,3.00203,3331.1,3330.9,0.03110656]
[1737674339381,3.0019,3331.3,3330.9,0.03110656]
[1737674339722,3.0019,3331.3,3330.9,0.67240326]
[1737674340492,3.00192,3331.2,3330.9,0.03110656]
[1737674340661,3.0021,3331.0,3330.9,0.03110656]
[1737674341092,3.0021,3331.0,3330.6,0.7638]
[1737674341273,3.5521,3331.0,3330.9,0.03110656]
[1737674341461,3.00179,3331.4,3330.3,0.757]
[1737674341784,0.55,3330.9,3330.4,0.03034032]
[1737674341986,3.00245,3330.7,3330.4,0.03034032]
[1737674342563,3.00219,3330.9,3330.4,0.03034032]
[1737674342747,3.00239,3330.7,3330.4,0.03034032]
[1737674342944,3.00184,3331.3,3330.4,0.03034032]
[1737674343183,3.0018,3331.4,3330.7,0.7693]
[1737674343395,3.0018,3331.4,3330.8,0.377168]
[1737674343594,3.0018,3331.4,3330.8,0.40726843]
[1737674343803,3.00185,3331.3,3330.8,0.03010043]
[1737674344160,3.0017,3331.5,3330.9,3.0]
[1737674344405,3.0017,3331.5,3331.0,0.02995483]
[1737674345503,3.00175,3331.4,3331.0,0.02995483]
[1737674345871,3.00158,3331.6,3331.0,0.02995483]
[1737674346070,6.00285,3331.8,3331.1,4.10789548]
[1737674346277,3.00141,3331.8,3331.1,7.10987548]
[1737674346471,3.00141,3331.8,3331.2,0.02972365]
[1737674346779,0.55,3331.7,3331.2,0.02972365]
[1737674346989,3.00181,3331.4,3331.2,0.02972365]
[1737674347467,3.00161,3331.6,3331.2,0.02972365]
[1737674347667,3.00165,3331.5,3331.2,0.02972365]
[1737674347973,3.00183,3331.3,3331.2,0.02972365]
[1737674348173,3.00165,3331.5,3331.2,0.02972365]
[1737674348478,3.55149,3331.7,3331.2,0.02972365]
[1737674348813,3.00181,3331.4,3331.2,0.02972365]
[1737674349400,3.00183,3331.3,3331.2,0.02972365]
[1737674349602,3.00181,3331.4,3331.2,0.02972365]
[1737674350066,3.00157,3331.6,3331.2,0.02972365]
[1737674350975,0.1676187,3332.0,3331.5,3.0]
[1737674351195,0.1676187,3332.0,3331.6,0.79150401]
[1737674352427,3.1688787,3332.0,3331.6,0.79150401]
[1737674352574,3.0013,3331.9,3331.6,0.79150401]
[1737674353613,0.1676187,3332.0,3331.6,0.79150401]
[1737674353779,3.1688287,3332.0,3331.6,0.79150401]
[1737674354809,3.1688287,3332.0,3331.6,0.02940401]
[1737674354810,3.00147,3331.7,3331.6,0.02940401]
[1737674355308,3.00147,3331.7,3331.2,0.8109]
[1737674355608,3.00147,3331.7,3331.2,1.192192]
[1737674355787,3.00155,3331.7,3331.3,0.02928001]
[1737674356418,3.00138,3331.8,3331.3,0.02928001]
[1737674356711,3.00154,3331.7,3331.3,0.02928001]
[1737674357209,3.00153,3331.7,3331.3,0.02928001]
[1737674357592,3.00159,3331.6,3331.3,0.02928001]
[1737674358506,3.00174,3331.4,3331.3,0.02928001]
[1737674359027,3.00174,3331.4,3331.3,0.02941267]
[1737674359221,3.00174,3331.4,3330.9,3.7943]
[1737674359390,3.00174,3331.4,3331.3,0.02941267]
[1737674359587,3.00174,3331.4,3330.9,4.473951]
[1737674359791,3.00174,3331.4,3331.0,0.02954209]
[1737674362834,3.00197,3331.2,3331.0,0.02954209]
[1737674363709,3.00235,3330.8,3330.3,0.8255]
[1737674364327,3.00237,3330.7,3330.3,0.8255]
[1737674364524,3.00225,3330.9,3330.3,0.8255]
[1737674364766,3.00229,3330.8,3330.3,0.8255]
[1737674364915,3.00277,3330.3,3329.6,3.0033]
[1737674365236,3.54937,3330.5,3329.6,3.8288]
[1737674365450,3.00273,3330.3,3329.6,0.8255]
[1737674365630,0.55,3330.4,3329.6,0.8255]
[1737674365955,3.00294,3330.1,3329.3,3.82905]
[1737674366105,3.0031,3329.9,3329.4,0.382905]
[1737674367251,3.00276,3330.3,3329.4,0.382905]
[1737674367408,3.55264,3330.4,3329.8,3.0]
[1737674368231,3.00276,3330.3,3329.8,3.0]
[1737674368437,3.55264,3330.4,3329.8,3.0]
[1737674368738,3.00248,3330.6,3329.9,0.8163]
[1737674368906,3.00248,3330.6,3330.0,3.38163]
[1737674369308,3.00261,3330.5,3330.0,0.38163]
[1737674369710,0.55,3330.7,3329.9,0.8163]
[1737674369942,3.00298,3330.1,3329.6,0.8306]
[1737674370153,0.55,3330.3,3329.7,3.0]
[1737674370316,3.00246,3330.6,3329.9,3.00309]
[1737674370525,3.00246,3330.6,3329.8,0.7523]
[1737674370770,3.5491,3330.8,3330.1,3.0]
[1737674370929,3.5491,3330.8,3329.9,3.67555]
[1737674370930,3.00267,3330.4,3329.9,3.67555]
[1737674371111,3.00263,3330.5,3329.9,0.67555]
[1737674371314,3.00273,3330.3,3329.8,0.7523]
[1737674372223,3.0026,3330.5,3329.8,0.7523]
[1737674372422,3.00277,3330.3,3329.8,0.7523]
[1737674372922,3.00283,3330.2,3329.8,0.7523]
[1737674374431,3.00291,3330.1,3329.8,0.7523]
[1737674375044,3.00324,3329.8,3329.4,0.7729]
[1737674375230,3.55307,3330.0,3329.4,3.77643]
[1737674375433,3.0031,3329.9,3329.4,0.7729]
[1737674375636,3.0031,3329.9,3329.5,0.03049255]
[1737674376330,3.00327,3329.8,3329.5,0.03049255]
[1737674377229,0.55,3330.1,3329.5,0.03049255]
[1737674377428,0.55,3329.7,3329.5,0.03049255]
[1737674377853,0.55,3329.7,3329.1,3.00372]
[1737674378060,0.55,3329.7,3329.6,0.03039545]
[1737674378261,3.00302,3330.0,3329.2,3.685252]
[1737674378856,3.00302,3330.0,3329.3,0.03095075]
[1737674379236,3.00302,3330.0,3329.5,3.0]
[1737674379639,3.00302,3330.0,3329.3,0.03095075]
[1737674379640,3.00312,3329.9,3329.6,0.03075643]
[1737674379850,3.00302,3330.0,3329.6,0.03075643]
[1737674380174,3.00318,3329.8,3329.7,0.03068359]
[1737674380345,3.00302,3330.0,3329.3,3.0]
[1737674380546,3.00317,3329.9,3329.3,3.6685252]
[1737674380862,3.00302,3330.0,3329.4,0.03090214]
[1737674381877,3.0032,3329.8,3329.4,0.03090214]
[1737674383171,3.00302,3330.0,3329.4,0.03090214]
[1737674383947,3.55312,3329.9,3329.4,0.03090214]
[1737674384277,3.55312,3329.9,3329.4,0.40121587]
[1737674385692,0.55,3330.1,3329.4,0.03090214]
[1737674385872,3.00328,3329.7,3329.4,0.03090214]
[1737674386257,3.00328,3329.7,3329.1,6.00378]
[1737674386458,3.00328,3329.7,3329.5,0.03083116]
[1737674386658,3.00328,3329.7,3329.1,6.00378]
[1737674386859,3.00328,3329.7,3329.6,0.03075832]
[1737674387060,3.00328,3329.7,3329.1,6.685358]
[1737674387256,3.0031,3329.9,3329.6,0.03083786]
[1737674387463,3.00292,3330.1,3329.5,3.8187]
[1737674387662,3.00271,3330.4,3329.7,0.03073978]
[1737674387871,3.00284,3330.2,3329.7,3.0]
[1737674388076,3.00284,3330.2,3329.8,0.03062216]
[1737674388479,3.0032,3329.8,3329.5,3.8187]
[1737674388882,3.0032,3329.8,3329.5,0.8187]
[1737674390799,0.55,3329.9,3329.6,0.03117483]
[1737674392072,3.00249,3330.6,3329.6,0.03117483]
[1737674392263,3.00249,3330.6,3330.0,3.0]
[1737674392504,3.00243,3330.7,3330.0,0.600302]
[1737674392742,4.1390063,3330.9,3330.3,0.8329]
[1737674393101,3.5523,3330.8,3330.4,0.03056691]
[1737674394544,0.55,3330.9,3330.4,0.03056691]
[1737674394756,3.55226,3330.9,3330.4,3.03056691]
[1737674396448,0.55,3330.9,3330.4,6.03314691]
[1737674396635,0.55,3330.9,3330.4,7.0200226]
[1737674398245,3.00175,3331.4,3330.8,3.0]
[1737674398447,3.00192,3331.2,3330.9,0.7682]
[1737674398647,3.00192,3331.2,3330.9,0.79804844]
[1737674399336,3.55183,3331.3,3330.9,0.79804844]
[1737674399760,3.00198,3331.2,3330.9,0.79804844]
[1737674399917,3.00198,3331.2,3330.9,0.02984844]
[1737674400119,3.00198,3331.2,3330.6,0.802]
[1737674400329,3.55202,3331.1,3331.0,0.02984641]
[1737674400529,3.00228,3330.8,3330.3,3.80473]
[1737674400856,1.70445581,3332.1,3331.1,3.0]
[1737674401058,2.74708881,3332.5,3331.5,3.00159]
[1737674401059,3.00099,3332.3,3331.5,3.00159]
[1737674401359,3.00099,3332.3,3331.8,0.8164]
[1737674401652,3.00106,3332.2,3331.9,0.02892845]
[1737674401953,3.00104,3332.2,3331.9,0.02892845]
[1737674402153,0.58870153,3332.1,3331.9,0.02892845]
[1737674402565,3.58985153,3332.1,3331.9,0.02892845]
[1737674402736,3.58985153,3332.1,3331.6,3.0]
[1737674403056,3.00099,3332.3,3331.6,3.0]
[1737674403057,3.00099,3332.3,3331.6,6.55162123]
[1737674403257,3.00099,3332.3,3331.7,0.03022082]
[1737674404166,3.00059,3332.7,3331.9,3.0]
[1737674404359,3.00035,3333.0,3331.9,6.79279]
[1737674404564,3.00022,3333.1,3331.9,6.82078504]
[1737674404762,3.00038,3333.0,3331.9,7.80300054]
[1737674406459,3.00013,3333.2,3331.9,7.80300054]
[1737674407074,2.99994,3333.4,3331.9,7.80300054]
[1737674407278,3.00012,3333.2,3331.9,7.80300054]
[1737674407561,3.00012,3333.2,3331.9,42.80300054]
[1737674408524,2.99994,3333.4,3331.9,42.80300054]
[1737674408729,2.99977,3333.6,3331.9,42.80300054]
[1737674408927,2.99994,3333.4,3332.8,3.7562]
[1737674409132,2.99994,3333.4,3332.8,0.7562]
[1737674409331,3.00006,3333.3,3332.9,0.02914993]
[1737674409561,2.99994,3333.4,3332.9,0.02914993]
[1737674409764,2.99941,3334.0,3333.0,0.37853499]
[1737674409968,2.99955,3333.9,3333.3,3.0]
[1737674410129,2.99924,3334.2,3333.5,2.99983]
[1737674410334,0.01073469,3334.3,3333.5,2.99983]
[1737674410335,3.00993469,3334.3,3333.6,3.0]
[1737674410655,0.01073469,3334.3,3333.6,3.02908935]
[1737674410857,3.00986469,3334.3,3333.6,0.02908935]
[1737674411068,2.99938,3334.1,3333.6,0.68604094]
[1737674411250,2.99944,3334.0,3333.7,0.02881]
[1737674411764,2.99949,3333.9,3333.5,3.0]
[1737674411954,2.99938,3334.1,3333.8,0.02873214]
[1737674412292,0.01073469,3334.3,3333.4,3.8313]
[1737674412293,2.99941,3334.0,3333.4,3.8313]
[1737674412442,2.99941,3334.0,3333.5,0.683135]
[1737674412776,2.99941,3334.0,3333.5,0.71590929]
[1737674413074,0.01073469,3334.3,3333.5,0.71590929]
[1737674413381,2.99932,3334.1,3333.5,0.71590929]
[1737674414079,2.99944,3334.0,3333.5,0.71590929]
[1737674414304,2.99944,3334.0,3333.7,3.0]
[1737674414597,0.01073469,3334.3,3333.7,3.0]
[1737674414935,0.01073469,3334.3,3333.5,0.683135]
[1737674415053,2.99985,3333.5,3333.4,0.8313]
[1737674415373,2.99985,3333.5,3333.4,0.86163048]
[1737674415777,2.99985,3333.5,3333.4,0.03033048]
[1737674416148,3.00027,3333.1,3332.5,3.7628]
[1737674416340,3.00006,3333.3,3332.6,0.676356]
[1737674416676,3.00014,3333.2,3332.6,0.70735757]
[1737674417042,3.00014,3333.2,3332.6,3.70735757]
[1737674417675,3.0003,3333.0,3332.6,0.70735757]
[1737674417848,3.00003,3333.3,3332.6,0.70735757]
[1737674418052,3.00044,3332.9,3332.6,0.03100157]
[1737674418248,3.00049,3332.8,3332.6,0.03100157]
[1737674418476,3.00057,3332.7,3332.6,0.03100157]
[1737674418783,0.55,3332.6,3331.8,0.7655]
[1737674419002,3.00071,3332.6,3331.9,3.0]
[1737674419277,3.0005,3332.8,3332.0,0.676681]
[1737674419467,3.00095,3332.3,3332.1,0.02939641]
[1737674420076,3.00102,3332.2,3332.1,0.02939641]
[1737674420485,3.55102,3332.2,3332.1,0.02939641]
[1737674420689,4.277638,3332.2,3332.1,6.41e-06]
[1737674420856,3.0019,3331.3,3330.8,0.7655]
[1737674421057,6.00379,3331.3,3330.9,0.03293824]
[1737674421377,3.00193,3331.2,3330.9,0.03293824]
[1737674421784,3.0021,3331.0,3330.9,0.03293824]
[1737674422151,3.00193,3331.2,3330.6,35.0]
[1737674422351,3.00217,3331.0,3330.6,35.0]
[1737674422563,3.00196,3331.2,3330.7,3.03312025]
[1737674422887,3.00183,3331.3,3330.7,6.13514587]
[1737674423185,3.00183,3331.3,3330.7,9.13750587]
[1737674423885,3.00183,3331.3,3330.7,6.13514587]
[1737674423886,3.00193,3331.2,3330.7,6.13514587]
[1737674424085,3.71595,3331.5,3330.7,6.13514587]
[1737674424394,3.00183,3331.3,3330.7,9.13748587]
[1737674424691,3.00207,3331.1,3330.7,3.03312025]
[1737674425153,3.71596,3331.5,3330.7,3.03312025]
[1737674425351,0.7143,3332.3,3331.0,3.0]
[1737674425548,2.9994,3334.0,3331.6,0.8135]
[1737674425549,3.00082,3332.5,3331.6,0.8135]
[1737674425786,3.00048,3332.8,3331.8,3.0]
[1737674425985,0.7143,3332.9,3331.8,3.0]
[1737674425986,3.00091,3332.4,3331.8,3.0]
[1737674426287,3.00091,3332.4,3331.9,0.02861335]
[1737674426663,0.7143,3332.9,3332.1,3.0]
[1737674426664,6.00096,3332.8,3332.1,3.0]
[1737674426861,3.00092,3332.4,3332.2,0.0281718]
[1737674427270,3.0,3333.4,3332.2,0.0281718]
[1737674427271,0.7143,3333.3,3332.3,0.7791]
[1737674427477,0.7143,3333.3,3332.3,0.80719387]
[1737674427677,3.00077,3332.5,3332.3,0.80719387]
[1737674427877,3.00049,3332.8,3332.3,0.02809387]
[1737674428078,3.00049,3332.8,3332.1,6.0011]
[1737674428383,3.00023,3333.1,3332.3,3.0]
[1737674428783,3.00023,3333.1,3332.3,6.00084]
[1737674428984,3.55031,3333.0,3332.5,3.0]
[1737674429191,3.55031,3333.0,3332.3,3.0]
[1737674429491,3.55031,3333.0,3332.3,6.0009]
[1737674429716,2.99996,3333.4,3332.8,3.00047]
[1737674430000,2.99976,3333.6,3332.8,3.0]
[1737674430172,2.7578235,3334.3,3333.5,3.0]
[1737674430173,0.01073469,3334.3,3333.5,3.0]
[1737674430364,0.01073469,3334.3,3334.2,2.99922]
[1737674430504,0.01073469,3334.3,3334.2,7.097042]
[1737674430862,0.01073469,3334.3,3334.2,38.7979]
[1737674431406,0.01073469,3334.3,3334.2,6.79712]
[1737674432514,0.01073469,3334.3,3334.2,6.85908608]
[1737674433460,0.01073469,3334.3,3334.2,3.85986608]
[1737674434653,0.01073469,3334.3,3334.2,6.85908608]
[1737674434831,0.01073469,3334.3,3334.2,9.9611117]
[1737674435042,0.01073469,3334.3,3334.2,6.85908608]
[1737674435244,0.01073469,3334.3,3334.2,3.06196608]
[1737674435658,2.99889,3334.6,3334.2,0.06196608]
[1737674435856,2.99903,3334.5,3333.8,3.0]
[1737674436055,2.99903,3334.5,3333.9,0.06230516]
[1737674436485,0.599792,3334.5,3333.9,0.06230516]
[1737674436786,2.9994,3334.0,3333.2,3.00004]
[1737674437128,2.9994,3334.0,3333.4,3.0]
[1737674437574,2.9992,3334.3,3333.5,0.7567]
[1737674437730,2.9991,3334.4,3333.6,2.99969]
[1737674437950,0.55,3334.8,3333.7,3.0]
[1737674438243,0.55,3334.8,3333.7,3.675639]
[1737674438244,0.976277,3334.8,3333.7,3.675639]
[1737674438445,2.99913,3334.3,3333.7,3.675639]
[1737674438856,0.55,3334.8,3333.7,3.675639]
[1737674438857,2.99868,3334.8,3333.7,0.675639]
[1737674439166,2.99839,3335.2,3334.4,3.0]
[1737674439370,2.99814,3335.4,3334.4,3.0]
[1737674439371,2.99842,3335.1,3334.5,0.8281]
[1737674439828,2.99814,3335.4,3334.5,3.8281]
[1737674440031,3.1659187,3335.3,3334.5,3.82703]
[1737674440233,0.1676187,3335.3,3334.5,0.8281]
[1737674440428,2.99835,3335.2,3334.5,4.209742]
[1737674440632,0.1676187,3335.3,3334.6,5.99878]
[1737674440833,0.1676187,3335.3,3334.8,3.0]
[1737674441265,2.99832,3335.2,3334.5,0.8281]
[1737674441465,0.1676187,3335.3,3334.5,0.8281]
[1737674441670,2.99874,3334.8,3334.2,3.0]
[1737674441968,2.99869,3334.8,3334.1,0.8331]
[1737674443070,2.99869,3334.8,3334.2,3.0]
[1737674443371,0.1676187,3335.3,3334.4,2.99904]
[1737674443538,0.1676187,3335.3,3334.5,1.569404]
[1737674443870,0.1676187,3335.3,3334.6,35.0]
[1737674443871,2.99857,3335.0,3334.6,35.0]
[1737674444059,2.99857,3335.0,3334.7,3.0]
[1737674444261,3.1658587,3335.3,3334.7,3.0]
[1737674444568,2.99832,3335.2,3334.7,3.0]
[1737674444866,2.99842,3335.1,3334.8,35.0]
[1737674445167,3.1658487,3335.3,3334.9,3.0]
[1737674445891,2.99844,3335.1,3334.9,3.0]
[1737674446677,3.1658487,3335.3,3334.9,3.0]
[1737674446983,2.99834,3335.2,3334.9,3.0]
[1737674449134,2.99834,3335.2,3334.3,2.99912]
[1737674449135,0.61641087,3335.2,3333.9,2.99948]
[1737674449337,0.55,3334.8,3333.5,0.764]
[1737674449566,2.99904,3334.4,3333.6,2.99968]
[1737674449881,2.99902,3334.5,3333.9,3.0]
[1737674450105,0.7143,3335.1,3334.0,0.899956]
[1737674450258,2.99877,3334.7,3334.1,3.8061]
[1737674450696,3.71271,3335.1,3334.2,2.99918]
[1737674450990,2.99864,3334.9,3334.3,3.05825294]
[1737674451638,2.99868,3334.8,3334.3,0.05825294]
[1737674451838,2.99868,3334.8,3334.1,6.80607]
[1737674452039,2.99868,3334.8,3334.2,0.05843847]
[1737674452640,2.99879,3334.7,3334.2,0.05843847]
[1737674454078,2.9991,3334.4,3334.2,0.05843847]
[1737674454644,2.99913,3334.3,3334.2,0.05843847]
[1737674457198,3.54913,3334.3,3334.2,8.47e-06]
[1737674457367,4.275383,3334.3,3334.2,5.97e-06]
[1737674457699,3.0001,3333.3,3333.0,35.0]
[1737674457848,0.7143,3333.4,3333.1,0.05534733]
[1737674458048,3.00033,3333.0,3332.5,0.7969]
[1737674458269,3.00047,3332.9,3332.6,35.05569084]
[1737674459361,3.00047,3332.9,3332.7,3.0]
[1737674459666,3.00047,3332.9,3332.8,0.05556879]
[1737674459854,3.00047,3332.9,3332.5,0.7969]
[1737674460051,3.00047,3332.9,3332.7,3.0]
[1737674460253,3.00047,3332.9,3332.8,0.05556879]
[1737674460588,3.00047,3332.9,3332.7,3.0]
[1737674460756,3.00047,3332.9,3332.8,0.05554149]
[1737674461152,3.00047,3332.9,3332.8,38.0]
[1737674461487,0.5910798,3334.0,3332.9,3.0]
[1737674461675,2.99962,3333.8,3333.0,0.80794973]
[1737674461878,0.7143,3334.2,3333.0,0.80794973]
[1737674462185,2.99956,3333.9,3333.6,3.0]
[1737674462575,0.7143,3334.7,3333.7,0.82008019]